Workbook

Sheet Disclaimer
B2: Copyright © 2019 Saxo Bank A/S Licensed under the Apache License, Version 2.0 (the "License"); You may not use this file except in compliance with the License. You may obtain a copy of the License at http://www.apache.org/licenses/LICENSE-2.0 Unless required by applicable law or agreed to in writing, software distributed under the License is distributed on an "AS IS" BASIS, WITHOUT WARRANTIES OR CONDITIONS OF ANY KIND, either express or implied. See the License for the specific language governing permissions and limitations under the License.

Sheet Chart
A1: OpenAPI MACD Indicator
A3: UIC (FX only) | B3: 19
A4: AssetType | B4: FxSpot
A5: Symbol | B5: =_xll.OpenAPIGet("/openapi/ref/v1/instruments/details/?Uics="&Chart!B3&"&AssetTypes="&Chart!B4&"&FieldGroups=","Symbol") -> EURNOK
A6: Horizon (mins) | B6: 1
A7: Datapoints (50-1200) | B7: 300
A9: MACD indicator
A10: ST EMA window | B10: 12
A11: LT EMA window | B11: 26
A12: Singal line EMA window | B12: 9
A13: ST multiplier | B13: =2/(1+B10) -> 0.1538461538
A14: LT multiplier | B14: =2/(1+B11) -> 0.07407407407
A15: Singal multiplier | B15: =2/(1+B12) -> 0.2

Sheet Data
A1: Date & Time (UTC) | B1: Price | C1: EMA-12 | D1: EMA-26 | E1: MACD | F1: Signal-9 | G1: MACD Histogram
A2: 2025-03-10T03:48:00 | B2: 11.7659
A3: 2025-03-10T03:49:00 | B3: 11.7666
A4: 2025-03-10T03:50:00 | B4: 11.7664
A5: 2025-03-10T03:51:00 | B5: 11.7663
A6: 2025-03-10T03:52:00 | B6: 11.7658
A7: 2025-03-10T03:53:00 | B7: 11.76446
A8: 2025-03-10T03:54:00 | B8: 11.76565
A9: 2025-03-10T03:55:00 | B9: 11.7657
A10: 2025-03-10T03:56:00 | B10: 11.76548
A11: 2025-03-10T03:57:00 | B11: 11.7653
A12: 2025-03-10T03:58:00 | B12: 11.76592
A13: 2025-03-10T03:59:00 | B13: 11.7653 | C13: =AVERAGE(B2:B13) -> 11.76573417
A14: 2025-03-10T04:00:00 | B14: 11.76568 | C14: =(B14-C13) * stm + C13 -> 11.76572583
A15: 2025-03-10T04:01:00 | B15: 11.76541 | C15: =(B15-C14) * stm + C14 -> 11.76567724
A16: 2025-03-10T04:02:00 | B16: 11.7635 | C16: =(B16-C15) * stm + C15 -> 11.76534228
A17: 2025-03-10T04:03:00 | B17: 11.7628 | C17: =(B17-C16) * stm + C16 -> 11.76495116
A18: 2025-03-10T04:04:00 | B18: 11.76388 | C18: =(B18-C17) * stm + C17 -> 11.76478637
A19: 2025-03-10T04:05:00 | B19: 11.76478 | C19: =(B19-C18) * stm + C18 -> 11.76478539
A20: 2025-03-10T04:06:00 | B20: 11.76462 | C20: =(B20-C19) * stm + C19 -> 11.76475994
A21: 2025-03-10T04:07:00 | B21: 11.76355 | C21: =(B21-C20) * stm + C20 -> 11.7645738
A22: 2025-03-10T04:08:00 | B22: 11.76514 | C22: =(B22-C21) * stm + C21 -> 11.76466091
A23: 2025-03-10T04:09:00 | B23: 11.7637 | C23: =(B23-C22) * stm + C22 -> 11.76451307
A24: 2025-03-10T04:10:00 | B24: 11.7637 | C24: =(B24-C23) * stm + C23 -> 11.76438799
A25: 2025-03-10T04:11:00 | B25: 11.76408 | C25: =(B25-C24) * stm + C24 -> 11.7643406
A26: 2025-03-10T04:12:00 | B26: 11.76367 | C26: =(B26-C25) * stm + C25 -> 11.76423743
A27: 2025-03-10T04:13:00 | B27: 11.76382 | C27: =(B27-C26) * stm + C26 -> 11.76417321 | D27: =AVERAGE(B2:B27) -> 11.76489 | E27: =C27-D27 -> -0.0007167865036
A28: 2025-03-10T04:14:00 | B28: 11.76415 | C28: =(B28-C27) * stm + C27 -> 11.76416964 | D28: =(B28-D27) * ltm + D27 -> 11.76483519 | E28: -0.000665542996
A29: 2025-03-10T04:15:00 | B29: 11.7638 | C29: =(B29-C28) * stm + C28 -> 11.76411277 | D29: =(B29-D28) * ltm + D28 -> 11.7647585 | E29: -0.000645730641
A30: 2025-03-10T04:16:00 | B30: 11.76295 | C30: =(B30-C29) * stm + C29 -> 11.76393389 | D30: =(B30-D29) * ltm + D29 -> 11.76462454 | E30: -0.0006906556547
A31: 2025-03-10T04:17:00 | B31: 11.76378 | C31: =(B31-C30) * stm + C30 -> 11.76391021 | D31: =(B31-D30) * ltm + D30 -> 11.76456198 | E31: -0.0006517717691
A32: 2025-03-10T04:18:00 | B32: 11.76398 | C32: =(B32-C31) * stm + C31 -> 11.76392095 | D32: =(B32-D31) * ltm + D31 -> 11.76451887 | E32: -0.0005979251719
A33: 2025-03-10T04:19:00 | B33: 11.76354 | C33: =(B33-C32) * stm + C32 -> 11.76386234 | D33: =(B33-D32) * ltm + D32 -> 11.76444636 | E33: -0.00058402342
A34: 2025-03-10T04:20:00 | B34: 11.76451 | C34: =(B34-C33) * stm + C33 -> 11.76396198 | D34: =(B34-D33) * ltm + D33 -> 11.76445108 | E34: -0.0004890972791
A35: 2025-03-10T04:21:00 | B35: 11.76425 | C35: =(B35-C34) * stm + C34 -> 11.76400629 | D35: =(B35-D34) * ltm + D34 -> 11.76443618 | E35: -0.0004298919291 | F35: =AVERAGE(E27:E35) -> -0.0006079361516 | G35: =E35-F35 -> 0.0001780442225
A36: 2025-03-10T04:22:00 | B36: 11.7627 | C36: =(B36-C35) * stm + C35 -> 11.76380532 | D36: =(B36-D35) * ltm + D35 -> 11.76430758 | E36: -0.0005022536414 | F36: =(E36-F35) * slm + F35 -> -0.0005867996496 | G36: 8.454600816e-05
A37: 2025-03-10T04:23:00 | B37: 11.76327 | C37: =(B37-C36) * stm + C36 -> 11.76372297 | D37: =(B37-D36) * ltm + D36 -> 11.76423072 | E37: -0.000507753517 | F37: =(E37-F36) * slm + F36 -> -0.0005709904231 | G37: 6.323690608e-05
A38: 2025-03-10T04:24:00 | B38: 11.76312 | C38: =(B38-C37) * stm + C37 -> 11.7636302 | D38: =(B38-D37) * ltm + D37 -> 11.76414844 | E38: -0.0005182419834 | F38: =(E38-F37) * slm + F37 -> -0.0005604407351 | G38: 4.219875173e-05
A39: 2025-03-10T04:25:00 | B39: 11.76324 | C39: =(B39-C38) * stm + C38 -> 11.76357017 | D39: =(B39-D38) * ltm + D38 -> 11.76408115 | E39: -0.0005109809017 | F39: =(E39-F38) * slm + F38 -> -0.0005505487684 | G39: 3.956786673e-05
A40: 2025-03-10T04:26:00 | B40: 11.76346 | C40: =(B40-C39) * stm + C39 -> 11.76355322 | D40: =(B40-D39) * ltm + D39 -> 11.76403514 | E40: -0.0004819190183 | F40: =(E40-F39) * slm + F39 -> -0.0005368228184 | G40: 5.490380009e-05
A41: 2025-03-10T04:27:00 | B41: 11.7638 | C41: =(B41-C40) * stm + C40 -> 11.76359119 | D41: =(B41-D40) * ltm + D40 -> 11.76401772 | E41: -0.0004265352747 | F41: =(E41-F40) * slm + F40 -> -0.0005147653097 | G41: 8.823003495e-05
A42: 2025-03-10T04:28:00 | B42: 11.76426 | C42: =(B42-C41) * stm + C41 -> 11.76369408 | D42: =(B42-D41) * ltm + D41 -> 11.76403567 | E42: -0.0003415874953 | F42: =(E42-F41) * slm + F41 -> -0.0004801297468 | G42: 0.0001385422515
A43: 2025-03-10T04:29:00 | B43: 11.7642 | C43: =(B43-C42) * stm + C42 -> 11.76377192 | D43: =(B43-D42) * ltm + D42 -> 11.76404784 | E43: -0.000275926557 | F43: =(E43-F42) * slm + F42 -> -0.0004392891088 | G43: 0.0001633625518
A44: 2025-03-10T04:30:00 | B44: 11.76316 | C44: =(B44-C43) * stm + C43 -> 11.76367777 | D44: =(B44-D43) * ltm + D43 -> 11.76398208 | E44: -0.0003043013027 | F44: =(E44-F43) * slm + F43 -> -0.0004122915476 | G44: 0.0001079902449
A45: 2025-03-10T04:31:00 | B45: 11.76338 | C45: =(B45-C44) * stm + C44 -> 11.76363196 | D45: =(B45-D44) * ltm + D44 -> 11.76393748 | E45: -0.0003055145502 | F45: =(E45-F44) * slm + F44 -> -0.0003909361481 | G45: 8.542159794e-05
A46: 2025-03-10T04:32:00 | B46: 11.76277 | C46: =(B46-C45) * stm + C45 -> 11.76349935 | D46: =(B46-D45) * ltm + D45 -> 11.763851 | E46: -0.0003516444216 | F46: =(E46-F45) * slm + F45 -> -0.0003830778028 | G46: 3.143338125e-05
A47: 2025-03-10T04:33:00 | B47: 11.76319 | C47: =(B47-C46) * stm + C46 -> 11.76345176 | D47: =(B47-D46) * ltm + D46 -> 11.76380203 | E47: -0.0003502744414 | F47: =(E47-F46) * slm + F46 -> -0.0003765171305 | G47: 2.624268917e-05
A48: 2025-03-10T04:34:00 | B48: 11.76336 | C48: =(B48-C47) * stm + C47 -> 11.76343764 | D48: =(B48-D47) * ltm + D47 -> 11.76376929 | E48: -0.0003316481099 | F48: =(E48-F47) * slm + F47 -> -0.0003675433264 | G48: 3.589521647e-05
A49: 2025-03-10T04:35:00 | B49: 11.76356 | C49: =(B49-C48) * stm + C48 -> 11.76345647 | D49: =(B49-D48) * ltm + D48 -> 11.76375379 | E49: -0.0002973209488 | F49: =(E49-F48) * slm + F48 -> -0.0003534988509 | G49: 5.617790213e-05
A50: 2025-03-10T04:36:00 | B50: 11.76315 | C50: =(B50-C49) * stm + C49 -> 11.76340932 | D50: =(B50-D49) * ltm + D49 -> 11.76370906 | E50: -0.000299744729 | F50: =(E50-F49) * slm + F49 -> -0.0003427480265 | G50: 4.300329748e-05
A51: 2025-03-10T04:37:00 | B51: 11.7634 | C51: =(B51-C50) * stm + C50 -> 11.76340789 | D51: =(B51-D50) * ltm + D50 -> 11.76368617 | E51: -0.0002782847879 | F51: =(E51-F50) * slm + F50 -> -0.0003298553788 | G51: 5.15705909e-05
A52: 2025-03-10T04:38:00 | B52: 11.76329 | C52: =(B52-C51) * stm + C51 -> 11.76338975 | D52: =(B52-D51) * ltm + D51 -> 11.76365682 | E52: -0.0002670750359 | F52: =(E52-F51) * slm + F51 -> -0.0003172993102 | G52: 5.022427435e-05
A53: 2025-03-10T04:39:00 | B53: 11.7636 | C53: =(B53-C52) * stm + C52 -> 11.7634221 | D53: =(B53-D52) * ltm + D52 -> 11.76365261 | E53: -0.0002305195317 | F53: =(E53-F52) * slm + F52 -> -0.0002999433545 | G53: 6.942382279e-05
A54: 2025-03-10T04:40:00 | B54: 11.7631 | C54: =(B54-C53) * stm + C53 -> 11.76337254 | D54: =(B54-D53) * ltm + D53 -> 11.76361168 | E54: -0.0002391382161 | F54: =(E54-F53) * slm + F53 -> -0.0002877823268 | G54: 4.864411069e-05
A55: 2025-03-10T04:41:00 | B55: 11.763 | C55: =(B55-C54) * stm + C54 -> 11.76331523 | D55: =(B55-D54) * ltm + D54 -> 11.76356637 | E55: -0.0002511427328 | F55: =(E55-F54) * slm + F54 -> -0.000280454408 | G55: 2.931167521e-05
A56: 2025-03-10T04:42:00 | B56: 11.763 | C56: =(B56-C55) * stm + C55 -> 11.76326673 | D56: =(B56-D55) * ltm + D55 -> 11.76352442 | E56: -0.0002576859555 | F56: =(E56-F55) * slm + F55 -> -0.0002759007175 | G56: 1.821476204e-05
A57: 2025-03-10T04:43:00 | B57: 11.7626 | C57: =(B57-C56) * stm + C56 -> 11.76316416 | D57: =(B57-D56) * ltm + D56 -> 11.76345594 | E57: -0.0002917846518 | F57: =(E57-F56) * slm + F56 -> -0.0002790775044 | G57: -1.270714743e-05
A58: 2025-03-10T04:44:00 | B58: 11.7633 | C58: =(B58-C57) * stm + C57 -> 11.76318506 | D58: =(B58-D57) * ltm + D57 -> 11.76344439 | E58: -0.0002593345176 | F58: =(E58-F57) * slm + F57 -> -0.000275128907 | G58: 1.579438945e-05
A59: 2025-03-10T04:45:00 | B59: 11.763 | C59: =(B59-C58) * stm + C58 -> 11.76315659 | D59: =(B59-D58) * ltm + D58 -> 11.76341147 | E59: -0.000254886868 | F59: =(E59-F58) * slm + F58 -> -0.0002710804992 | G59: 1.619363118e-05
A60: 2025-03-10T04:46:00 | B60: 11.763 | C60: =(B60-C59) * stm + C59 -> 11.7631325 | D60: =(B60-D59) * ltm + D59 -> 11.76338099 | E60: -0.0002484975487 | F60: =(E60-F59) * slm + F59 -> -0.0002665639091 | G60: 1.806636043e-05
A61: 2025-03-10T04:47:00 | B61: 11.76379 | C61: =(B61-C60) * stm + C60 -> 11.76323365 | D61: =(B61-D60) * ltm + D60 -> 11.76341129 | E61: -0.0001776398478 | F61: =(E61-F60) * slm + F60 -> -0.0002487790968 | G61: 7.113924907e-05
A62: 2025-03-10T04:48:00 | B62: 11.7636 | C62: =(B62-C61) * stm + C61 -> 11.76329001 | D62: =(B62-D61) * ltm + D61 -> 11.76342527 | E62: -0.0001352568645 | F62: =(E62-F61) * slm + F61 -> -0.0002260746504 | G62: 9.08177859e-05
A63: 2025-03-10T04:49:00 | B63: 11.7634 | C63: =(B63-C62) * stm + C62 -> 11.76330693 | D63: =(B63-D62) * ltm + D62 -> 11.7634234 | E63: -0.0001164638506 | F63: =(E63-F62) * slm + F62 -> -0.0002041524904 | G63: 8.768863981e-05
A64: 2025-03-10T04:50:00 | B64: 11.76345 | C64: =(B64-C63) * stm + C63 -> 11.76332894 | D64: =(B64-D63) * ltm + D63 -> 11.76342537 | E64: -9.642415199e-05 | F64: =(E64-F63) * slm + F63 -> -0.0001826068227 | G64: 8.618267074e-05
A65: 2025-03-10T04:51:00 | B65: 11.7643 | C65: =(B65-C64) * stm + C64 -> 11.76347834 | D65: =(B65-D64) * ltm + D64 -> 11.76349016 | E65: -1.181841487e-05 | F65: =(E65-F64) * slm + F64 -> -0.0001484491412 | G65: 0.0001366307263
A66: 2025-03-10T04:52:00 | B66: 11.76342 | C66: =(B66-C65) * stm + C65 -> 11.76346936 | D66: =(B66-D65) * ltm + D65 -> 11.76348496 | E66: -1.559661611e-05 | F66: =(E66-F65) * slm + F65 -> -0.0001218786361 | G66: 0.00010628202
A67: 2025-03-10T04:53:00 | B67: 11.76376 | C67: =(B67-C66) * stm + C66 -> 11.76351408 | D67: =(B67-D66) * ltm + D66 -> 11.76350533 | E67: 8.743501059e-06 | F67: =(E67-F66) * slm + F66 -> -9.575420871e-05 | G67: 0.0001044977098
A68: 2025-03-10T04:54:00 | B68: 11.76316 | C68: =(B68-C67) * stm + C67 -> 11.7634596 | D68: =(B68-D67) * ltm + D67 -> 11.76347975 | E68: -2.014949547e-05 | F68: =(E68-F67) * slm + F67 -> -8.063326606e-05 | G68: 6.048377059e-05
A69: 2025-03-10T04:55:00 | B69: 11.76365 | C69: =(B69-C68) * stm + C68 -> 11.76348889 | D69: =(B69-D68) * ltm + D68 -> 11.76349236 | E69: -3.468515603e-06 | F69: =(E69-F68) * slm + F68 -> -6.520031597e-05 | G69: 6.173180037e-05
A70: 2025-03-10T04:56:00 | B70: 11.763 | C70: =(B70-C69) * stm + C69 -> 11.76341368 | D70: =(B70-D69) * ltm + D69 -> 11.76345589 | E70: -4.221169644e-05 | F70: =(E70-F69) * slm + F69 -> -6.060259206e-05 | G70: 1.839089562e-05
A71: 2025-03-10T04:57:00 | B71: 11.7637 | C71: =(B71-C70) * stm + C70 -> 11.76345773 | D71: =(B71-D70) * ltm + D70 -> 11.76347397 | E71: -1.624453958e-05 | F71: =(E71-F70) * slm + F70 -> -5.173098157e-05 | G71: 3.548644198e-05
A72: 2025-03-10T04:58:00 | B72: 11.76433 | C72: =(B72-C71) * stm + C71 -> 11.76359192 | D72: =(B72-D71) * ltm + D71 -> 11.76353738 | E72: 5.454163219e-05 | F72: =(E72-F71) * slm + F71 -> -3.047645882e-05 | G72: 8.501809101e-05
A73: 2025-03-10T04:59:00 | B73: 11.76428 | C73: =(B73-C72) * stm + C72 -> 11.76369778 | D73: =(B73-D72) * ltm + D72 -> 11.76359239 | E73: 0.0001053907225 | F73: =(E73-F72) * slm + F72 -> -3.303022545e-06 | G73: 0.0001086937451
A74: 2025-03-10T05:00:00 | B74: 11.7632 | C74: =(B74-C73) * stm + C73 -> 11.7636212 | D74: =(B74-D73) * ltm + D73 -> 11.76356333 | E74: 5.78748734e-05 | F74: =(E74-F73) * slm + F73 -> 8.932556644e-06 | G74: 4.894231676e-05
A75: 2025-03-10T05:01:00 | B75: 11.76277 | C75: =(B75-C74) * stm + C74 -> 11.76349025 | D75: =(B75-D74) * ltm + D74 -> 11.76350456 | E75: -1.431418075e-05 | F75: =(E75-F74) * slm + F74 -> 4.283209166e-06 | G75: -1.859738991e-05
A76: 2025-03-10T05:02:00 | B76: 11.76285 | C76: =(B76-C75) * stm + C75 -> 11.76339175 | D76: =(B76-D75) * ltm + D75 -> 11.76345607 | E76: -6.432766556e-05 | F76: =(E76-F75) * slm + F75 -> -9.438965778e-06 | G76: -5.488869978e-05
A77: 2025-03-10T05:03:00 | B77: 11.76269 | C77: =(B77-C76) * stm + C76 -> 11.76328379 | D77: =(B77-D76) * ltm + D76 -> 11.76339933 | E77: -0.0001155424737 | F77: =(E77-F76) * slm + F76 -> -3.065966736e-05 | G77: -8.488280634e-05
A78: 2025-03-10T05:04:00 | B78: 11.76433 | C78: =(B78-C77) * stm + C77 -> 11.76344474 | D78: =(B78-D77) * ltm + D77 -> 11.76346827 | E78: -2.352510147e-05 | F78: =(E78-F77) * slm + F77 -> -2.923275418e-05 | G78: 5.707652716e-06
A79: 2025-03-10T05:05:00 | B79: 11.76402 | C79: =(B79-C78) * stm + C78 -> 11.76353324 | D79: =(B79-D78) * ltm + D78 -> 11.76350914 | E79: 2.410702893e-05 | F79: =(E79-F78) * slm + F78 -> -1.856479756e-05 | G79: 4.267182649e-05
A80: 2025-03-10T05:06:00 | B80: 11.7636 | C80: =(B80-C79) * stm + C79 -> 11.76354351 | D80: =(B80-D79) * ltm + D79 -> 11.76351587 | E80: 2.764665214e-05 | F80: =(E80-F79) * slm + F79 -> -9.322507622e-06 | G80: 3.696915976e-05
A81: 2025-03-10T05:07:00 | B81: 11.76409 | C81: =(B81-C80) * stm + C80 -> 11.76362759 | D81: =(B81-D80) * ltm + D80 -> 11.7635584 | E81: 6.919311872e-05 | F81: =(E81-F80) * slm + F80 -> 6.380617647e-06 | G81: 6.281250108e-05
A82: 2025-03-10T05:08:00 | B82: 11.76457 | C82: =(B82-C81) * stm + C81 -> 11.76377257 | D82: =(B82-D81) * ltm + D81 -> 11.76363333 | E82: 0.0001392458419 | F82: =(E82-F81) * slm + F81 -> 3.29536625e-05 | G82: 0.0001062921794
A83: 2025-03-10T05:09:00 | B83: 11.76402 | C83: =(B83-C82) * stm + C82 -> 11.76381064 | D83: =(B83-D82) * ltm + D82 -> 11.76366197 | E83: 0.000148668963 | F83: =(E83-F82) * slm + F82 -> 5.60967226e-05 | G83: 9.257224041e-05
A84: 2025-03-10T05:10:00 | B84: 11.76376 | C84: =(B84-C83) * stm + C83 -> 11.76380285 | D84: =(B84-D83) * ltm + D83 -> 11.76366923 | E84: 0.0001336167763 | F84: =(E84-F83) * slm + F83 -> 7.160073333e-05 | G84: 6.201604293e-05
A85: 2025-03-10T05:11:00 | B85: 11.76296 | C85: =(B85-C84) * stm + C84 -> 11.76367318 | D85: =(B85-D84) * ltm + D84 -> 11.7636167 | E85: 5.648339033e-05 | F85: =(E85-F84) * slm + F84 -> 6.857726473e-05 | G85: -1.20938744e-05
A86: 2025-03-10T05:12:00 | B86: 11.76104 | C86: =(B86-C85) * stm + C85 -> 11.76326808 | D86: =(B86-D85) * ltm + D85 -> 11.76342583 | E86: -0.0001577548282 | F86: =(E86-F85) * slm + F85 -> 2.331084615e-05 | G86: -0.0001810656743
A87: 2025-03-10T05:13:00 | B87: 11.7616 | C87: =(B87-C86) * stm + C86 -> 11.76301145 | D87: =(B87-D86) * ltm + D86 -> 11.76329058 | E87: -0.0002791351438 | F87: =(E87-F86) * slm + F86 -> -3.717835183e-05 | G87: -0.0002419567919
A88: 2025-03-10T05:14:00 | B88: 11.76067 | C88: =(B88-C87) * stm + C87 -> 11.76265123 | D88: =(B88-D87) * ltm + D87 -> 11.76309647 | E88: -0.0004452406885 | F88: =(E88-F87) * slm + F87 -> -0.0001187908192 | G88: -0.0003264498694
A89: 2025-03-10T05:15:00 | B89: 11.75991 | C89: =(B89-C88) * stm + C88 -> 11.7622295 | D89: =(B89-D88) * ltm + D88 -> 11.76286043 | E89: -0.000630933173 | F89: =(E89-F88) * slm + F88 -> -0.0002212192899 | G89: -0.0004097138831
A90: 2025-03-10T05:16:00 | B90: 11.75866 | C90: =(B90-C89) * stm + C89 -> 11.76168035 | D90: =(B90-D89) * ltm + D89 -> 11.76254929 | E90: -0.0008689437159 | F90: =(E90-F89) * slm + F89 -> -0.0003507641751 | G90: -0.0005181795408
A91: 2025-03-10T05:17:00 | B91: 11.75877 | C91: =(B91-C90) * stm + C90 -> 11.7612326 | D91: =(B91-D90) * ltm + D90 -> 11.76226934 | E91: =C91-D91 -> -0.001036741791 | F91: =(E91-F90) * slm + F90 -> -0.0004879596983 | G91: -0.0005487820928
A92: 2025-03-10T05:18:00 | B92: 11.75932 | C92: =(B92-C91) * stm + C91 -> 11.76093835 | D92: =(B92-D91) * ltm + D91 -> 11.76205087 | E92: -0.001112518155 | F92: =(E92-F91) * slm + F91 -> -0.0006128713896 | G92: -0.0004996467649
A93: 2025-03-10T05:19:00 | B93: 11.75898 | C93: =(B93-C92) * stm + C92 -> 11.76063707 | D93: =(B93-D92) * ltm + D92 -> 11.7618234 | E93: -0.001186331338 | F93: =(E93-F92) * slm + F92 -> -0.0007275633792 | G93: -0.0004587679585
A94: 2025-03-10T05:20:00 | B94: 11.75843 | C94: =(B94-C93) * stm + C93 -> 11.76029752 | D94: =(B94-D93) * ltm + D93 -> 11.76157204 | E94: -0.001274517378 | F94: =(E94-F93) * slm + F93 -> -0.0008369541789 | G94: -0.0004375631988
A95: 2025-03-10T05:21:00 | B95: 11.75837 | C95: =(B95-C94) * stm + C94 -> 11.76000098 | D95: =(B95-D94) * ltm + D94 -> 11.76133485 | E95: -0.001333870915 | F95: =(E95-F94) * slm + F94 -> -0.000936337526 | G95: -0.0003975333886
A96: 2025-03-10T05:22:00 | B96: 11.75828 | C96: =(B96-C95) * stm + C95 -> 11.75973621 | D96: =(B96-D95) * ltm + D95 -> 11.76110856 | E96: -0.001372351653 | F96: =(E96-F95) * slm + F95 -> -0.001023540351 | G96: -0.0003488113012
A97: 2025-03-10T05:23:00 | B97: 11.75889 | C97: =(B97-C96) * stm + C96 -> 11.75960603 | D97: =(B97-D96) * ltm + D96 -> 11.76094423 | E97: -0.001338200075 | F97: =(E97-F96) * slm + F96 -> -0.001086472296 | G97: -0.000251727779
A98: 2025-03-10T05:24:00 | B98: 11.75959 | C98: =(B98-C97) * stm + C97 -> 11.75960356 | D98: =(B98-D97) * ltm + D97 -> 11.76084391 | E98: -0.001240352542 | F98: =(E98-F97) * slm + F97 -> -0.001117248345 | G98: -0.0001231041968
A99: 2025-03-10T05:25:00 | B99: 11.75979 | C99: =(B99-C98) * stm + C98 -> 11.75963224 | D99: =(B99-D98) * ltm + D98 -> 11.76076585 | E99: -0.001133601882 | F99: =(E99-F98) * slm + F98 -> -0.001120519053 | G99: =E99-F99 -> -1.308282923e-05
A100: 2025-03-10T05:26:00 | B100: 11.76005 | C100: =(B100-C99) * stm + C99 -> 11.75969651 | D100: =(B100-D99) * ltm + D99 -> 11.76071282 | E100: -0.001016306044 | F100: =(E100-F99) * slm + F99 -> -0.001099676451 | G100: 8.337040693e-05
A101: 2025-03-10T05:27:00 | B101: 11.76063 | C101: =(B101-C100) * stm + C100 -> 11.75984013 | D101: =(B101-D100) * ltm + D100 -> 11.76070668 | E101: -0.0008665579539 | F101: =(E101-F100) * slm + F100 -> -0.001053052751 | G101: 0.0001864947976
A102: 2025-03-10T05:28:00 | B102: 11.7607 | C102: =(B102-C101) * stm + C101 -> 11.75997241 | D102: =(B102-D101) * ltm + D101 -> 11.76070619 | E102: -0.0007337746019 | F102: =(E102-F101) * slm + F101 -> -0.0009891971216 | G102: 0.0002554225197
A103: 2025-03-10T05:29:00 | B103: 11.76034 | C103: =(B103-C102) * stm + C102 -> 11.76002897 | D103: =(B103-D102) * ltm + D102 -> 11.76067906 | E103: -0.0006500979061 | F103: =(E103-F102) * slm + F102 -> -0.0009213772785 | G103: 0.0002712793724
A104: 2025-03-10T05:30:00 | B104: 11.76 | C104: =(B104-C103) * stm + C103 -> 11.76002451 | D104: =(B104-D103) * ltm + D103 -> 11.76062876 | E104: -0.0006042532253 | F104: =(E104-F103) * slm + F103 -> -0.0008579524678 | G104: 0.0002536992426
A105: 2025-03-10T05:31:00 | B105: 11.7599 | C105: =(B105-C104) * stm + C104 -> 11.76000535 | D105: =(B105-D104) * ltm + D104 -> 11.76057478 | E105: -0.0005694261594 | F105: =(E105-F104) * slm + F104 -> -0.0008002472061 | G105: 0.0002308210468
A106: 2025-03-10T05:32:00 | B106: 11.75924 | C106: =(B106-C105) * stm + C105 -> 11.75988761 | D106: =(B106-D105) * ltm + D105 -> 11.76047591 | E106: -0.0005883003823 | F106: =(E106-F105) * slm + F105 -> -0.0007578578414 | G106: 0.0001695574591
A107: 2025-03-10T05:33:00 | B107: 11.7595 | C107: =(B107-C106) * stm + C106 -> 11.75982798 | D107: =(B107-D106) * ltm + D106 -> 11.76040362 | E107: -0.0005756428603 | F107: =(E107-F106) * slm + F106 -> -0.0007214148452 | G107: 0.0001457719849
A108: 2025-03-10T05:34:00 | B108: 11.7596 | C108: =(B108-C107) * stm + C107 -> 11.7597929 | D108: =(B108-D107) * ltm + D107 -> 11.76034409 | E108: -0.0005511887577 | F108: =(E108-F107) * slm + F107 -> -0.0006873696277 | G108: 0.0001361808699
A109: 2025-03-10T05:35:00 | B109: 11.759 | C109: =(B109-C108) * stm + C108 -> 11.75967092 | D109: =(B109-D108) * ltm + D108 -> 11.76024453 | E109: -0.0005736114551 | F109: =(E109-F108) * slm + F108 -> -0.0006646179932 | G109: 9.100653807e-05
A110: 2025-03-10T05:36:00 | B110: 11.7594 | C110: =(B110-C109) * stm + C109 -> 11.75962924 | D110: =(B110-D109) * ltm + D109 -> 11.76018197 | E110: -0.0005527333809 | F110: =(E110-F109) * slm + F109 -> -0.0006422410707 | G110: 8.950768983e-05
A111: 2025-03-10T05:37:00 | B111: 11.7596 | C111: =(B111-C110) * stm + C110 -> 11.75962474 | D111: =(B111-D110) * ltm + D110 -> 11.76013886 | E111: -0.0005141225434 | F111: =(E111-F110) * slm + F110 -> -0.0006166173652 | G111: 0.0001024948218
A112: 2025-03-10T05:38:00 | B112: 11.7576 | C112: =(B112-C111) * stm + C111 -> 11.75931324 | D112: =(B112-D111) * ltm + D111 -> 11.7599508 | E112: -0.0006375571005 | F112: =(E112-F111) * slm + F111 -> -0.0006208053123 | G112: -1.675178822e-05
A113: 2025-03-10T05:39:00 | B113: 11.7576 | C113: =(B113-C112) * stm + C112 -> 11.75904967 | D113: =(B113-D112) * ltm + D112 -> 11.75977667 | E113: -0.0007269994789 | F113: =(E113-F112) * slm + F112 -> -0.0006420441456 | G113: -8.495533325e-05
A114: 2025-03-10T05:40:00 | B114: 11.7578 | C114: =(B114-C113) * stm + C113 -> 11.75885741 | D114: =(B114-D113) * ltm + D113 -> 11.75963025 | E114: -0.000772836106 | F114: =(E114-F113) * slm + F113 -> -0.0006682025377 | G114: -0.0001046335683
A115: 2025-03-10T05:41:00 | B115: 11.7566 | C115: =(B115-C114) * stm + C114 -> 11.75851012 | D115: =(B115-D114) * ltm + D114 -> 11.75940578 | E115: -0.00089566724 | F115: =(E115-F114) * slm + F114 -> -0.0007136954782 | G115: -0.0001819717619
A116: 2025-03-10T05:42:00 | B116: 11.7569 | C116: =(B116-C115) * stm + C115 -> 11.75826241 | D116: =(B116-D115) * ltm + D115 -> 11.75922017 | E116: -0.000957763801 | F116: =(E116-F115) * slm + F115 -> -0.0007625091427 | G116: -0.0001952546583
A117: 2025-03-10T05:43:00 | B117: 11.757 | C117: =(B117-C116) * stm + C116 -> 11.75806819 | D117: =(B117-D116) * ltm + D116 -> 11.75905571 | E117: -0.0009875230576 | F117: =(E117-F116) * slm + F116 -> -0.0008075119257 | G117: -0.0001800111319
A118: 2025-03-10T05:44:00 | B118: 11.7571 | C118: =(B118-C117) * stm + C117 -> 11.75791924 | D118: =(B118-D117) * ltm + D117 -> 11.75891084 | E118: -0.0009916076824 | F118: =(E118-F117) * slm + F117 -> -0.000844331077 | G118: -0.0001472766054
A119: 2025-03-10T05:45:00 | B119: 11.7562 | C119: =(B119-C118) * stm + C118 -> 11.75765474 | D119: =(B119-D118) * ltm + D118 -> 11.75871004 | E119: -0.001055302386 | F119: =(E119-F118) * slm + F118 -> -0.0008865253389 | G119: -0.0001687770475
A120: 2025-03-10T05:46:00 | B120: 11.7567 | C120: =(B120-C119) * stm + C119 -> 11.75750786 | D120: =(B120-D119) * ltm + D119 -> 11.75856115 | E120: -0.001053293367 | F120: =(E120-F119) * slm + F119 -> -0.0009198789445 | G120: -0.0001334144222
A121: 2025-03-10T05:47:00 | B121: 11.7564 | C121: =(B121-C120) * stm + C120 -> 11.75733742 | D121: =(B121-D120) * ltm + D120 -> 11.75840106 | E121: -0.001063647629 | F121: =(E121-F120) * slm + F120 -> -0.0009486326814 | G121: -0.0001150149477
A122: 2025-03-10T05:48:00 | B122: 11.75607 | C122: =(B122-C121) * stm + C121 -> 11.75714243 | D122: =(B122-D121) * ltm + D121 -> 11.75822839 | E122: -0.001085963389 | F122: =(E122-F121) * slm + F121 -> -0.0009760988228 | G122: -0.0001098645658
A123: 2025-03-10T05:49:00 | B123: 11.7565 | C123: =(B123-C122) * stm + C122 -> 11.75704359 | D123: =(B123-D122) * ltm + D122 -> 11.75810036 | E123: -0.001056769601 | F123: =(E123-F122) * slm + F122 -> -0.0009922329784 | G123: -6.453662214e-05
A124: 2025-03-10T05:50:00 | B124: 11.7569 | C124: =(B124-C123) * stm + C123 -> 11.7570215 | D124: =(B124-D123) * ltm + D123 -> 11.75801145 | E124: -0.0009899451841 | F124: =(E124-F123) * slm + F123 -> -0.0009917754195 | G124: 1.830235399e-06
A125: 2025-03-10T05:51:00 | B125: 11.7572 | C125: =(B125-C124) * stm + C124 -> 11.75704896 | D125: =(B125-D124) * ltm + D124 -> 11.75795134 | E125: -0.0009023768216 | F125: =(E125-F124) * slm + F124 -> -0.0009738956999 | G125: 7.151887833e-05
A126: 2025-03-10T05:52:00 | B126: 11.7571 | C126: =(B126-C125) * stm + C125 -> 11.75705682 | D126: =(B126-D125) * ltm + D125 -> 11.75788828 | E126: -0.0008314628416 | F126: =(E126-F125) * slm + F125 -> -0.0009454091283 | G126: 0.0001139462867
A127: 2025-03-10T05:53:00 | B127: 11.7578 | C127: =(B127-C126) * stm + C126 -> 11.75717115 | D127: =(B127-D126) * ltm + D126 -> 11.75788174 | E127: -0.0007105876397 | F127: =(E127-F126) * slm + F126 -> -0.0008984448306 | G127: 0.0001878571908
A128: 2025-03-10T05:54:00 | B128: 11.7589 | C128: =(B128-C127) * stm + C127 -> 11.75743713 | D128: =(B128-D127) * ltm + D127 -> 11.75795717 | E128: -0.0005200376936 | F128: =(E128-F127) * slm + F127 -> -0.0008227634032 | G128: 0.0003027257095
A129: 2025-03-10T05:55:00 | B129: 11.7585 | C129: =(B129-C128) * stm + C128 -> 11.75760065 | D129: =(B129-D128) * ltm + D128 -> 11.75799738 | E129: -0.0003967289017 | F129: =(E129-F128) * slm + F128 -> -0.0007375565029 | G129: 0.0003408276011
A130: 2025-03-10T05:56:00 | B130: 11.7595 | C130: =(B130-C129) * stm + C129 -> 11.75789286 | D130: =(B130-D129) * ltm + D129 -> 11.75810868 | E130: -0.0002158262426 | F130: =(E130-F129) * slm + F129 -> -0.0006332104508 | G130: 0.0004173842083
A131: 2025-03-10T05:57:00 | B131: 11.7593 | C131: =(B131-C130) * stm + C130 -> 11.75810934 | D131: =(B131-D130) * ltm + D130 -> 11.75819693 | E131: -8.758824756e-05 | F131: =(E131-F130) * slm + F130 -> -0.0005240860102 | G131: 0.0004364977626
A132: 2025-03-10T05:58:00 | B132: 11.7594 | C132: =(B132-C131) * stm + C131 -> 11.7583079 | D132: =(B132-D131) * ltm + D131 -> 11.75828604 | E132: 2.18584807e-05 | F132: =(E132-F131) * slm + F131 -> -0.000414897112 | G132: 0.0004367555927
A133: 2025-03-10T05:59:00 | B133: 11.7593 | C133: =(B133-C132) * stm + C132 -> 11.75846053 | D133: =(B133-D132) * ltm + D132 -> 11.75836115 | E133: 9.938103439e-05 | F133: =(E133-F132) * slm + F132 -> -0.0003120414827 | G133: 0.0004114225171
A134: 2025-03-10T06:00:00 | B134: 11.76275 | C134: =(B134-C133) * stm + C133 -> 11.75912045 | D134: =(B134-D133) * ltm + D133 -> 11.75868625 | E134: 0.0004341992057 | F134: =(E134-F133) * slm + F133 -> -0.000162793345 | G134: 0.0005969925507
A135: 2025-03-10T06:01:00 | B135: 11.7628 | C135: =(B135-C134) * stm + C134 -> 11.75968654 | D135: =(B135-D134) * ltm + D134 -> 11.75899097 | E135: 0.0006955615997 | F135: =(E135-F134) * slm + F134 -> 8.877643904e-06 | G135: 0.0006866839558
A136: 2025-03-10T06:02:00 | B136: 11.7616 | C136: =(B136-C135) * stm + C135 -> 11.75998091 | D136: =(B136-D135) * ltm + D135 -> 11.75918423 | E136: 0.0007966795824 | F136: =(E136-F135) * slm + F135 -> 0.0001664380316 | G136: 0.0006302415508
A137: 2025-03-10T06:03:00 | B137: 11.7619 | C137: =(B137-C136) * stm + C136 -> 11.76027616 | D137: =(B137-D136) * ltm + D136 -> 11.7593854 | E137: 0.0008907557275 | F137: =(E137-F136) * slm + F136 -> 0.0003113015708 | G137: 0.0005794541567
A138: 2025-03-10T06:04:00 | B138: 11.761 | C138: =(B138-C137) * stm + C137 -> 11.76038752 | D138: =(B138-D137) * ltm + D137 -> 11.759505 | E138: 0.0008825161748 | F138: =(E138-F137) * slm + F137 -> 0.0004255444916 | G138: 0.0004569716832
A139: 2025-03-10T06:05:00 | B139: 11.7608 | C139: =(B139-C138) * stm + C138 -> 11.76045098 | D139: =(B139-D138) * ltm + D138 -> 11.75960093 | E139: 0.0008500491044 | F139: =(E139-F138) * slm + F138 -> 0.0005104454142 | G139: 0.0003396036903
A140: 2025-03-10T06:06:00 | B140: 11.7605 | C140: =(B140-C139) * stm + C139 -> 11.76045852 | D140: =(B140-D139) * ltm + D139 -> 11.75966753 | E140: 0.0007909931478 | F140: =(E140-F139) * slm + F139 -> 0.0005665549609 | G140: 0.0002244381869
A141: 2025-03-10T06:07:00 | B141: 11.7612 | C141: =(B141-C140) * stm + C140 -> 11.76057259 | D141: =(B141-D140) * ltm + D140 -> 11.75978104 | E141: 0.0007915505248 | F141: =(E141-F140) * slm + F140 -> 0.0006115540737 | G141: 0.0001799964512
A142: 2025-03-10T06:08:00 | B142: 11.7609 | C142: =(B142-C141) * stm + C141 -> 11.76062296 | D142: =(B142-D141) * ltm + D141 -> 11.75986393 | E142: 0.0007590350735 | F142: =(E142-F141) * slm + F141 -> 0.0006410502736 | G142: 0.0001179847999
A143: 2025-03-10T06:09:00 | B143: 11.7602 | C143: =(B143-C142) * stm + C142 -> 11.76055789 | D143: =(B143-D142) * ltm + D142 -> 11.75988882 | E143: 0.0006690695766 | F143: =(E143-F142) * slm + F142 -> 0.0006466541342 | G143: 2.241544239e-05
A144: 2025-03-10T06:10:00 | B144: 11.7597 | C144: =(B144-C143) * stm + C143 -> 11.76042591 | D144: =(B144-D143) * ltm + D143 -> 11.75987484 | E144: 0.0005510730241 | F144: =(E144-F143) * slm + F143 -> 0.0006275379122 | G144: -7.646488814e-05
A145: 2025-03-10T06:11:00 | B145: 11.7595 | C145: =(B145-C144) * stm + C144 -> 11.76028346 | D145: =(B145-D144) * ltm + D144 -> 11.75984707 | E145: 0.0004363911322 | F145: =(E145-F144) * slm + F144 -> 0.0005893085562 | G145: -0.000152917424
A146: 2025-03-10T06:12:00 | B146: 11.7596 | C146: =(B146-C145) * stm + C145 -> 11.76017831 | D146: =(B146-D145) * ltm + D145 -> 11.75982877 | E146: 0.0003495447367 | F146: =(E146-F145) * slm + F145 -> 0.0005413557923 | G146: -0.0001918110556
A147: 2025-03-10T06:13:00 | B147: 11.7597 | C147: =(B147-C146) * stm + C146 -> 11.76010473 | D147: =(B147-D146) * ltm + D146 -> 11.75981923 | E147: 0.0002854964812 | F147: =(E147-F146) * slm + F146 -> 0.0004901839301 | G147: -0.0002046874489
A148: 2025-03-10T06:14:00 | B148: 11.75991 | C148: =(B148-C147) * stm + C147 -> 11.76007477 | D148: =(B148-D147) * ltm + D147 -> 11.75982595 | E148: 0.0002488148396 | F148: =(E148-F147) * slm + F147 -> 0.000441910112 | G148: -0.0001930952724
A149: 2025-03-10T06:15:00 | B149: 11.7606 | C149: =(B149-C148) * stm + C148 -> 11.76015557 | D149: =(B149-D148) * ltm + D148 -> 11.75988329 | E149: 0.0002722829 | F149: =(E149-F148) * slm + F148 -> 0.0004079846696 | G149: -0.0001357017696
A150: 2025-03-10T06:16:00 | B150: 11.7603 | C150: =(B150-C149) * stm + C149 -> 11.76017779 | D150: =(B150-D149) * ltm + D149 -> 11.75991416 | E150: 0.0002636349941 | F150: =(E150-F149) * slm + F149 -> 0.0003791147345 | G150: -0.0001154797404
A151: 2025-03-10T06:17:00 | B151: 11.76 | C151: =(B151-C150) * stm + C150 -> 11.76015044 | D151: =(B151-D150) * ltm + D150 -> 11.75992052 | E151: 0.0002299235579 | F151: =(E151-F150) * slm + F150 -> 0.0003492764992 | G151: -0.0001193529413
A152: 2025-03-10T06:18:00 | B152: 11.7607 | C152: =(B152-C151) * stm + C151 -> 11.76023499 | D152: =(B152-D151) * ltm + D151 -> 11.75997826 | E152: 0.0002567317083 | F152: =(E152-F151) * slm + F151 -> 0.000330767541 | G152: -7.403583267e-05
A153: 2025-03-10T06:19:00 | B153: 11.7603 | C153: =(B153-C152) * stm + C152 -> 11.76024499 | D153: =(B153-D152) * ltm + D152 -> 11.76000209 | E153: 0.0002429006956 | F153: =(E153-F152) * slm + F152 -> 0.0003131941719 | G153: -7.029347629e-05
A154: 2025-03-10T06:20:00 | B154: 11.7609 | C154: =(B154-C153) * stm + C153 -> 11.76034576 | D154: =(B154-D153) * ltm + D153 -> 11.7600686 | E154: 0.0002771595809 | F154: =(E154-F153) * slm + F153 -> 0.0003059872537 | G154: -2.882767283e-05
A155: 2025-03-10T06:21:00 | B155: 11.7606 | C155: =(B155-C154) * stm + C154 -> 11.76038487 | D155: =(B155-D154) * ltm + D154 -> 11.76010796 | E155: =C155-D155 -> 0.0002769104502 | F155: =(E155-F154) * slm + F154 -> 0.000300171893 | G155: -2.326144283e-05
A156: 2025-03-10T06:22:00 | B156: 11.7607 | C156: =(B156-C155) * stm + C155 -> 11.76043336 | D156: =(B156-D155) * ltm + D155 -> 11.76015182 | E156: 0.0002815367956 | F156: =(E156-F155) * slm + F155 -> 0.0002964448735 | G156: -1.49080779e-05
A157: 2025-03-10T06:23:00 | B157: 11.76107 | C157: =(B157-C156) * stm + C156 -> 11.7605313 | D157: =(B157-D156) * ltm + D156 -> 11.76021983 | E157: 0.0003114686983 | F157: =(E157-F156) * slm + F156 -> 0.0002994496385 | G157: 1.201905977e-05
A158: 2025-03-10T06:24:00 | B158: 11.7629 | C158: =(B158-C157) * stm + C157 -> 11.76089572 | D158: =(B158-D157) * ltm + D157 -> 11.76041836 | E158: 0.0004773530243 | F158: =(E158-F157) * slm + F157 -> 0.0003350303156 | G158: 0.0001423227086
A159: 2025-03-10T06:25:00 | B159: 11.7614 | C159: =(B159-C158) * stm + C158 -> 11.7609733 | D159: =(B159-D158) * ltm + D158 -> 11.76049108 | E159: 0.0004822213364 | F159: =(E159-F158) * slm + F158 -> 0.0003644685198 | G159: 0.0001177528166
A160: 2025-03-10T06:26:00 | B160: 11.7614 | C160: =(B160-C159) * stm + C159 -> 11.76103894 | D160: =(B160-D159) * ltm + D159 -> 11.7605584 | E160: 0.0004805401412 | F160: =(E160-F159) * slm + F159 -> 0.0003876828441 | G160: 9.285729711e-05
A161: 2025-03-10T06:27:00 | B161: 11.7615 | C161: =(B161-C160) * stm + C160 -> 11.76110988 | D161: =(B161-D160) * ltm + D160 -> 11.76062815 | E161: 0.0004817239325 | F161: =(E161-F160) * slm + F160 -> 0.0004064910618 | G161: 7.523287075e-05
A162: 2025-03-10T06:28:00 | B162: 11.762 | C162: =(B162-C161) * stm + C161 -> 11.76124682 | D162: =(B162-D161) * ltm + D161 -> 11.76072977 | E162: 0.0005170477128 | F162: =(E162-F161) * slm + F161 -> 0.000428602392 | G162: 8.844532084e-05
A163: 2025-03-10T06:29:00 | B163: 11.7617 | C163: =(B163-C162) * stm + C162 -> 11.76131654 | D163: =(B163-D162) * ltm + D162 -> 11.76080164 | E163: 0.0005148991337 | F163: =(E163-F162) * slm + F162 -> 0.0004458617403 | G163: =E163-F163 -> 6.903739338e-05
A164: 2025-03-10T06:30:00 | B164: 11.7617 | C164: =(B164-C163) * stm + C163 -> 11.76137553 | D164: =(B164-D163) * ltm + D163 -> 11.76086818 | E164: 0.0005073479776 | F164: =(E164-F163) * slm + F163 -> 0.0004581589878 | G164: 4.918898983e-05
A165: 2025-03-10T06:31:00 | B165: 11.7612 | C165: =(B165-C164) * stm + C164 -> 11.76134853 | D165: =(B165-D164) * ltm + D164 -> 11.76089276 | E165: 0.0004557640464 | F165: =(E165-F164) * slm + F164 -> 0.0004576799995 | G165: -1.915953067e-06
A166: 2025-03-10T06:32:00 | B166: 11.76181 | C166: =(B166-C165) * stm + C165 -> 11.76141952 | D166: =(B166-D165) * ltm + D165 -> 11.76096071 | E166: 0.000458816362 | F166: =(E166-F165) * slm + F165 -> 0.000457907272 | G166: 9.090899568e-07
A167: 2025-03-10T06:33:00 | B167: 11.76176 | C167: =(B167-C166) * stm + C166 -> 11.7614719 | D167: =(B167-D166) * ltm + D166 -> 11.76101991 | E167: 0.0004519904968 | F167: =(E167-F166) * slm + F166 -> 0.0004567239169 | G167: -4.733420187e-06
A168: 2025-03-10T06:34:00 | B168: 11.76136 | C168: =(B168-C167) * stm + C167 -> 11.76145469 | D168: =(B168-D167) * ltm + D167 -> 11.76104511 | E168: 0.0004095828759 | F168: =(E168-F167) * slm + F167 -> 0.0004472957087 | G168: -3.771283282e-05
A169: 2025-03-10T06:35:00 | B169: 11.76175 | C169: =(B169-C168) * stm + C168 -> 11.76150012 | D169: =(B169-D168) * ltm + D168 -> 11.76109732 | E169: 0.0004028010319 | F169: =(E169-F168) * slm + F168 -> 0.0004383967734 | G169: -3.559574144e-05
A170: 2025-03-10T06:36:00 | B170: 11.7616 | C170: =(B170-C169) * stm + C169 -> 11.76151549 | D170: =(B170-D169) * ltm + D169 -> 11.76113456 | E170: 0.0003809314843 | F170: =(E170-F169) * slm + F169 -> 0.0004269037156 | G170: -4.597223126e-05
A171: 2025-03-10T06:37:00 | B171: 11.76176 | C171: =(B171-C170) * stm + C170 -> 11.7615531 | D171: =(B171-D170) * ltm + D170 -> 11.76118088 | E171: 0.0003722196566 | F171: =(E171-F170) * slm + F170 -> 0.0004159669038 | G171: -4.37472472e-05
A172: 2025-03-10T06:38:00 | B172: 11.76289 | C172: =(B172-C171) * stm + C171 -> 11.76175878 | D172: =(B172-D171) * ltm + D171 -> 11.76130749 | E172: 0.0004512947812 | F172: =(E172-F171) * slm + F171 -> 0.0004230324793 | G172: 2.826230194e-05
A173: 2025-03-10T06:39:00 | B173: 11.76281 | C173: =(B173-C172) * stm + C172 -> 11.76192051 | D173: =(B173-D172) * ltm + D172 -> 11.76141878 | E173: 0.0005017234996 | F173: =(E173-F172) * slm + F172 -> 0.0004387706833 | G173: 6.295281625e-05
A174: 2025-03-10T06:40:00 | B174: 11.76249 | C174: =(B174-C173) * stm + C173 -> 11.76200812 | D174: =(B174-D173) * ltm + D173 -> 11.76149813 | E174: 0.000509988467 | F174: =(E174-F173) * slm + F173 -> 0.00045301424 | G174: 5.697422691e-05
A175: 2025-03-10T06:41:00 | B175: 11.76312 | C175: =(B175-C174) * stm + C174 -> 11.76217918 | D175: =(B175-D174) * ltm + D174 -> 11.76161827 | E175: 0.0005609084446 | F175: =(E175-F174) * slm + F174 -> 0.000474593081 | G175: 8.631536367e-05
A176: 2025-03-10T06:42:00 | B176: 11.7633 | C176: =(B176-C175) * stm + C175 -> 11.76235161 | D176: =(B176-D175) * ltm + D175 -> 11.76174284 | E176: 0.0006087698694 | F176: =(E176-F175) * slm + F175 -> 0.0005014284386 | G176: 0.0001073414307
A177: 2025-03-10T06:43:00 | B177: 11.76375 | C177: =(B177-C176) * stm + C176 -> 11.76256675 | D177: =(B177-D176) * ltm + D176 -> 11.76189152 | E177: 0.0006752280241 | F177: =(E177-F176) * slm + F176 -> 0.0005361883557 | G177: 0.0001390396684
A178: 2025-03-10T06:44:00 | B178: 11.76302 | C178: =(B178-C177) * stm + C177 -> 11.76263648 | D178: =(B178-D177) * ltm + D177 -> 11.76197511 | E178: 0.0006613678545 | F178: =(E178-F177) * slm + F177 -> 0.0005612242555 | G178: 0.000100143599
A179: 2025-03-10T06:45:00 | B179: 11.76152 | C179: =(B179-C178) * stm + C178 -> 11.76246471 | D179: =(B179-D178) * ltm + D178 -> 11.7619414 | E179: 0.000523313672 | F179: =(E179-F178) * slm + F178 -> 0.0005536421388 | G179: -3.032846679e-05
A180: 2025-03-10T06:46:00 | B180: 11.7612 | C180: =(B180-C179) * stm + C179 -> 11.76227014 | D180: =(B180-D179) * ltm + D179 -> 11.76188648 | E180: 0.0003836608091 | F180: =(E180-F179) * slm + F179 -> 0.0005196458729 | G180: -0.0001359850638
A181: 2025-03-10T06:47:00 | B181: 11.76084 | C181: =(B181-C180) * stm + C180 -> 11.76205012 | D181: =(B181-D180) * ltm + D180 -> 11.76180896 | E181: 0.0002411560213 | F181: =(E181-F180) * slm + F180 -> 0.0004639479025 | G181: -0.0002227918813
A182: 2025-03-10T06:48:00 | B182: 11.76059 | C182: =(B182-C181) * stm + C181 -> 11.76182549 | D182: =(B182-D181) * ltm + D181 -> 11.76171867 | E182: 0.0001068157342 | F182: =(E182-F181) * slm + F181 -> 0.0003925214689 | G182: -0.0002857057346
A183: 2025-03-10T06:49:00 | B183: 11.76022 | C183: =(B183-C182) * stm + C182 -> 11.76157849 | D183: =(B183-D182) * ltm + D182 -> 11.76160766 | E183: -2.916957022e-05 | F183: =(E183-F182) * slm + F182 -> 0.0003081832611 | G183: -0.0003373528313
A184: 2025-03-10T06:50:00 | B184: 11.75917 | C184: =(B184-C183) * stm + C183 -> 11.76120795 | D184: =(B184-D183) * ltm + D183 -> 11.76142709 | E184: -0.0002191390302 | F184: =(E184-F183) * slm + F183 -> 0.0002027188028 | G184: -0.000421857833
A185: 2025-03-10T06:51:00 | B185: 11.75981 | C185: =(B185-C184) * stm + C184 -> 11.76099288 | D185: =(B185-D184) * ltm + D184 -> 11.76130731 | E185: -0.0003144240597 | F185: =(E185-F184) * slm + F184 -> 9.929023031e-05 | G185: -0.00041371429
A186: 2025-03-10T06:52:00 | B186: 11.75933 | C186: =(B186-C185) * stm + C185 -> 11.76073705 | D186: =(B186-D185) * ltm + D185 -> 11.76116084 | E186: -0.000423784991 | F186: =(E186-F185) * slm + F185 -> -5.324813955e-06 | G186: -0.0004184601771
A187: 2025-03-10T06:53:00 | B187: 11.75651 | C187: =(B187-C186) * stm + C186 -> 11.76008674 | D187: =(B187-D186) * ltm + D186 -> 11.76081633 | E187: -0.0007295944387 | F187: =(E187-F186) * slm + F186 -> -0.0001501787389 | G187: -0.0005794156998
A188: 2025-03-10T06:54:00 | B188: 11.75676 | C188: =(B188-C187) * stm + C187 -> 11.75957493 | D188: =(B188-D187) * ltm + D187 -> 11.76051586 | E188: -0.0009409312489 | F188: =(E188-F187) * slm + F187 -> -0.0003083292409 | G188: -0.000632602008
A189: 2025-03-10T06:55:00 | B189: 11.75474 | C189: =(B189-C188) * stm + C188 -> 11.7588311 | D189: =(B189-D188) * ltm + D188 -> 11.76008802 | E189: -0.00125692526 | F189: =(E189-F188) * slm + F188 -> -0.0004980484447 | G189: -0.000758876815
A190: 2025-03-10T06:56:00 | B190: 11.75483 | C190: =(B190-C189) * stm + C189 -> 11.75821554 | D190: =(B190-D189) * ltm + D189 -> 11.75969854 | E190: -0.001482995493 | F190: =(E190-F189) * slm + F189 -> -0.0006950378543 | G190: -0.0007879576388
A191: 2025-03-10T06:57:00 | B191: 11.75248 | C191: =(B191-C190) * stm + C190 -> 11.75733315 | D191: =(B191-D190) * ltm + D190 -> 11.75916383 | E191: -0.0018306802 | F191: =(E191-F190) * slm + F190 -> -0.0009221663235 | G191: -0.0009085138768
A192: 2025-03-10T06:58:00 | B192: 11.75179 | C192: =(B192-C191) * stm + C191 -> 11.75648036 | D192: =(B192-D191) * ltm + D191 -> 11.75861762 | E192: -0.002137263031 | F192: =(E192-F191) * slm + F191 -> -0.001165185665 | G192: -0.0009720773662
A193: 2025-03-10T06:59:00 | B193: 11.7454 | C193: =(B193-C192) * stm + C192 -> 11.75477569 | D193: =(B193-D192) * ltm + D192 -> 11.75763854 | E193: -0.002862850571 | F193: =(E193-F192) * slm + F192 -> -0.001504718646 | G193: -0.001358131925
A194: 2025-03-10T07:00:00 | B194: 11.72722 | C194: =(B194-C193) * stm + C193 -> 11.75053635 | D194: =(B194-D193) * ltm + D193 -> 11.75538531 | E194: -0.004848962169 | F194: =(E194-F193) * slm + F193 -> -0.002173567351 | G194: -0.002675394819
A195: 2025-03-10T07:01:00 | B195: 11.73781 | C195: =(B195-C194) * stm + C194 -> 11.74857845 | D195: =(B195-D194) * ltm + D194 -> 11.75408344 | E195: -0.005504987357 | F195: =(E195-F194) * slm + F194 -> -0.002839851352 | G195: -0.002665136005
A196: 2025-03-10T07:02:00 | B196: 11.74492 | C196: =(B196-C195) * stm + C195 -> 11.74801561 | D196: =(B196-D195) * ltm + D195 -> 11.75340467 | E196: -0.005389052819 | F196: =(E196-F195) * slm + F195 -> -0.003349691646 | G196: -0.002039361174
A197: 2025-03-10T07:03:00 | B197: 11.73711 | C197: =(B197-C196) * stm + C196 -> 11.74633783 | D197: =(B197-D196) * ltm + D196 -> 11.75219765 | E197: -0.005859827152 | F197: =(E197-F196) * slm + F196 -> -0.003851718747 | G197: -0.002008108405
A198: 2025-03-10T07:04:00 | B198: 11.73712 | C198: =(B198-C197) * stm + C197 -> 11.7449197 | D198: =(B198-D197) * ltm + D197 -> 11.75108079 | E198: -0.006161091064 | F198: =(E198-F197) * slm + F197 -> -0.00431359321 | G198: -0.001847497853
A199: 2025-03-10T07:05:00 | B199: 11.73317 | C199: =(B199-C198) * stm + C198 -> 11.74311205 | D199: =(B199-D198) * ltm + D198 -> 11.74975407 | E199: -0.006642011894 | F199: =(E199-F198) * slm + F198 -> -0.004779276947 | G199: -0.001862734947
A200: 2025-03-10T07:06:00 | B200: 11.72449 | C200: =(B200-C199) * stm + C199 -> 11.74024712 | D200: =(B200-D199) * ltm + D199 -> 11.74788265 | E200: -0.007635530927 | F200: =(E200-F199) * slm + F199 -> -0.005350527743 | G200: -0.002285003184
... 101 more rows

Sheet config
A1: AssetType | B1: Horizon
A2: FxSpot | B2: 1
B3: 2
B4: 3
B5: 5
B6: 10
B7: 15
B8: 30
B9: 60
B10: 120
B11: 180
B12: 240
B13: 300
B14: 360
B15: 480
B16: 1440
B17: 10080
B18: 43200
B19: 129600
B20: 518400
